fUSD/lending_fUSD_20240412
["ID","MTS","AMOUNT","RATE_DAILY","PERIOD"]
[322318548,1712950243857,-912.57285059,0.00021,2]
[322318585,1712950246337,-1000.0,0.00020999,2]
[322318586,1712950246346,-1886.38086817,0.00021,2]
[322318613,1712950246806,-461.0970906,0.00021,2]
[322318614,1712950246820,-1614.15,0.00021,2]
[322318615,1712950246832,-3011.65380544,0.00021,2]
[322318617,1712950246844,-794.8896099,0.00021,2]
[322318618,1712950246857,-808.17020803,0.00021,2]
[322318619,1712950246923,-484.0,0.00021,2]
[322318620,1712950246971,-285.86354147,0.00021,2]
[322318627,1712950304346,150.0,0.000168,2]
[322318628,1712950304368,27.58096545,0.000168,2]
[322318630,1712950327497,1094.30640613,0.0002526,28]
[322318632,1712950892554,1000.0,0.00035213,120]
[322318633,1712950911789,1000.0,0.00035213,120]
[322318634,1712950985441,-204.99217543,0.00020334,2]
[322318635,1712950985466,-250.0,0.00020335,2]
[322318636,1712950985489,-1000.0,0.00020476,2]
[322318637,1712950985514,-1000.0,0.00020499,2]
[322318638,1712950985540,-1297.32105733,0.00020511,2]
[322318639,1712950985566,-3460.23139053,0.00020583,2]
[322318640,1712950985590,-1500.0,0.00020651,2]
[322318641,1712950985759,-1297.32105733,0.00020756,2]
[322318642,1712950985786,-1000.0,0.00020758,2]
[322318643,1712950985810,-1000.0,0.00020759,2]
[322318644,1712950985834,-3000.0,0.0002079,2]
[322318645,1712950985857,-2500.0,0.00020799,2]
[322318646,1712950985880,-10939.10951217,0.000208,2]
[322318647,1712950985905,-484.78364675,0.000208,2]
[322318648,1712950985928,-200.0,0.00020832,2]
[322318649,1712950985951,-500.0,0.00020832,2]
[322318650,1712950985974,-150.99,0.00020832,2]
[322318651,1712950986002,-158.3,0.00020862,2]
[322318652,1712950986038,-13282.64609013,0.00020898,2]
[322318653,1712950986062,-1000.0,0.00020899,2]
[322318654,1712950986088,-16844.30507033,0.00020899,2]
[322318655,1712950994531,-50000.0,0.00020899,2]
[322318656,1712950997314,-1297.32105734,0.00020575,2]
[322318657,1712950997340,-204.99217543,0.00020898,2]
[322318658,1712950997366,-48497.68676723,0.00020899,2]
[322318659,1712951053436,1852.80142533,0.00020899,10]
[322318660,1712951075586,1859.82060186,0.00020899,10]
[322318661,1712951106940,-1000.0,0.00020799,2]
[322318662,1712951106968,-204.99217543,0.00020799,2]
[322318663,1712951106995,-2380.67541273,0.000208,2]
[322318664,1712951107023,-566.32,0.0002086,2]
[322318665,1712951107051,-242.77998876,0.00020897,2]
[322318666,1712951107076,-83605.23242308,0.00020899,2]
[322318667,1712951195530,1852.80142533,0.00020899,10]
[322318668,1712951196177,299.99,0.0002101,7]
[322318669,1712951211458,1852.80142533,0.00020899,10]
[322318670,1712951227455,1852.80142533,0.00020899,10]
[322318671,1712951245460,1852.80142533,0.00020899,10]
[322318672,1712951263455,289.44401581,0.00020899,10]
[322318673,1712951347187,-2678.4652,0.0002079,2]
[322318687,1712951432462,-361.99643426,0.00020789,2]
[322318688,1712951432474,-321.26700001,0.00020789,2]
[322318689,1712951432486,-3359.7,0.00020789,2]
[322318690,1712951433173,-7211.0,0.00020789,2]
[322318691,1712951433185,-1316.30922184,0.00020789,2]
[322318692,1712951433194,-245.64273778,0.0002079,2]
[322318693,1712951433212,-75.89206222,0.0002079,2]
[322318694,1712951433222,-555.5998,0.00020798,2]
[322318695,1712951433231,-1103.95901679,0.000208,2]
[322318696,1712951433243,-406.13838012,0.000208,2]
[322318697,1712951433290,-632.51047461,0.000208,2]
[322318698,1712951433299,-150.0,0.00020877,2]
[322318699,1712951433308,-500.0,0.00020897,2]
[322318700,1712951433318,-158.5151486,0.00020898,2]
[322318701,1712951433328,-9845.19856089,0.00020898,2]
[322318702,1712951433337,-46052.77573936,0.00020899,2]
[322318703,1712951433351,-1803.7527,0.00020899,2]
[322318704,1712951433361,-749.9566,0.00020899,2]
[322318705,1712951433370,-206.86865436,0.000209,2]
[322318706,1712951433380,-100000.0,0.000209,2]
[322318707,1712951433390,-178.0311027,0.000209,2]
[322318708,1712951433400,-151.99775341,0.000209,2]
[322318709,1712951433409,-5706.75221644,0.000209,2]
[322318710,1712951433418,-424.18569095,0.000209,2]
[322318711,1712951433428,-332.69328716,0.000209,2]
[322318712,1712951433438,-187.59154684,0.00020989,2]
[322318713,1712951433447,-1000.0,0.00020998,2]
[322318714,1712951433457,-156.1640232,0.00020998,2]
[322318715,1712951433466,-499.99,0.00020998,2]
[322318716,1712951433475,-150.99,0.00020998,2]
[322318717,1712951433483,-236.87679727,0.00020999,2]
[322318722,1712951438297,-588.74298094,0.00020999,2]
[322318723,1712951438307,-1118.74138225,0.00020999,2]
[322318725,1712951438660,-1877.13455906,0.00020999,2]
[322318745,1712951439191,-1848.62054919,0.00020999,2]
[322318749,1712951439217,-841.12762529,0.00020999,2]
[322318752,1712951439232,-15174.304841,0.00020999,2]
[322318756,1712951439246,-1642077.54631101,0.00020999,2]
[322318759,1712951439258,-1178920.99366802,0.00021,2]
[322318763,1712951439269,-716.561392,0.00021,2]
[322318765,1712951439280,-158.89,0.00021,2]
[322318768,1712951439290,-1218047.37553449,0.00021,2]
[322318770,1712951439300,-1183.06995449,0.00021,2]
[322318772,1712951439310,-170.7,0.00021,2]
[322318775,1712951439321,-434.70915521,0.00021,2]
[322318777,1712951439331,-250.0,0.00021,3]
[322318778,1712951439341,-150.99,0.00021,2]
[322318780,1712951439351,-5938.50855839,0.0002101,2]
[322318783,1712951439367,-250.0,0.00021134,2]
[322318785,1712951439377,-3460.23139054,0.00021225,2]
[322318787,1712951439388,-1297.32105734,0.00021277,2]
[322318789,1712951439398,-200.0,0.00021333,2]
[322318790,1712951439408,-250.0,0.00021918,2]
[322318793,1712951439418,-250.0,0.00021918,2]
[322318794,1712951439429,-302.21,0.00022554,2]
[322318796,1712951439439,-151.99775341,0.0002282,2]
[322318799,1712951439448,-200.0,0.0002285,2]
[322318801,1712951439458,-5706.75221638,0.000229,2]
[322318803,1712951439469,-800.0,0.00022908,2]
[322318805,1712951439480,-1107.68,0.00022928,2]
[322318806,1712951439490,-300.0,0.00023,3]
[322318808,1712951439500,-23900.0,0.00023018,2]
[322318810,1712951439510,-566.32,0.00023123,2]
[322318812,1712951439519,-2142.60787145,0.00023256,2]
[322318815,1712951439536,-1000.0,0.00023256,2]
[322318818,1712951439557,-800.0,0.0002326,2]
[322318821,1712951439574,-800.0,0.0002326,2]
[322318824,1712951439594,-1000.0,0.00023288,2]
[322318827,1712951439614,-1000.0,0.00023288,2]
[322318830,1712951439633,-1000.0,0.00023288,2]
[322318832,1712951439652,-1000.0,0.00023288,2]
[322318835,1712951439668,-1000.0,0.00023288,2]
[322318838,1712951439687,-1000.0,0.00023288,2]
[322318841,1712951439705,-1000.0,0.00023288,2]
[322318845,1712951439736,-1000.0,0.00023288,2]
[322318849,1712951439767,-1000.0,0.00023288,2]
[322318852,1712951439791,-1000.0,0.00023288,2]
[322318855,1712951439806,-1000.0,0.00023288,2]
[322318858,1712951439827,-1000.0,0.00023288,2]
[322318861,1712951439854,-1000.0,0.00023288,2]
[322318863,1712951439868,-1000.0,0.00023288,2]
[322318867,1712951439892,-1000.0,0.00023288,2]
[322318869,1712951439912,-1000.0,0.00023288,2]
[322318872,1712951439931,-1000.0,0.00023288,2]
[322318875,1712951439949,-1000.0,0.00023288,2]
[322318878,1712951439966,-1000.0,0.00023288,2]
[322318880,1712951439983,-1000.0,0.00023288,2]
[322318883,1712951439999,-1000.0,0.00023288,2]
[322318886,1712951440016,-1000.0,0.00023288,2]
[322318888,1712951440032,-152.0,0.00023288,2]
[322318891,1712951440048,-3000.0,0.0002329,2]
[322318894,1712951440062,-9845.19856088,0.00023343,2]
[322318896,1712951440079,-180.16,0.00023372,2]
[322318899,1712951440095,-200.0,0.00024,2]
[322318902,1712951440112,-424.18569088,0.00024043,2]
[322318906,1712951440128,-2433.0,0.000243,2]
[322318908,1712951440143,-800.0,0.00024466,2]
[322318911,1712951440157,-500.0,0.00024468,2]
[322318913,1712951440172,-228.72,0.00024658,2]
[322318917,1712951440187,-477.0,0.000247,2]
[322318922,1712951440202,-151.99775341,0.0002474,2]
[322318925,1712951440217,-1062.33237471,0.00024755,2]
[322318930,1712951440232,-5706.75221638,0.000249,2]
[322318934,1712951440247,-16877.19459715,0.00025,7]
[322318940,1712951440262,-642.33697296,0.00025,2]
[322318946,1712951440277,-799.62330309,0.00025,2]
[322318949,1712951440292,-2601.22645275,0.00025,2]
[322318953,1712951440308,-350.0,0.00025,3]
[322318957,1712951440323,-566.32,0.00025387,2]
[322318962,1712951440339,-1107.68,0.00025668,2]
[322318966,1712951440356,-1000.0,0.00025679,2]
[322318972,1712951440383,-2142.60787145,0.00025711,2]
[322318976,1712951440402,-800.0,0.00025772,2]
[322318980,1712951440422,-9845.19856088,0.00025787,2]
[322318985,1712951440440,-3000.0,0.0002579,2]
[322318988,1712951440458,-4230.45943756,0.00026,2]
[322318993,1712951440476,-200.0,0.00026285,2]
[322318997,1712951440493,-60346.72284942,0.000263,2]
[322319001,1712951440509,-25686.38646272,0.000264,2]
[322319005,1712951440525,-425.3340459,0.000265,2]
[322319007,1712951440541,-151.99775341,0.0002666,2]
[322319010,1712951440556,-200.0,0.00026666,2]
[322319013,1712951440571,-5706.75221638,0.000269,2]
[322319015,1712951440586,-1000.0,0.00027,2]
[322319018,1712951440601,-155.05767173,0.00027,2]
[322319020,1712951440618,-158.89,0.00027,2]
[322319023,1712951440632,-308.8565,0.00027,2]
[322319025,1712951440647,-400.0,0.00027,3]
[322319026,1712951440661,-153.52245926,0.00027393,2]
[322319027,1712951440676,-405.90756244,0.00027397,2]
[322319028,1712951440691,-150.99,0.00027397,2]
[322319029,1712951440707,-261.98,0.00027397,2]
[322319030,1712951440716,-161.2,0.00027397,2]
[322319031,1712951440726,-152.13,0.00027397,2]
[322319053,1712951440930,-158.28,0.00027397,2]
[322319056,1712951440953,-5300.14755709,0.000274,2]
[322319058,1712951440964,-5823.42,0.000274,2]
[322319060,1712951440973,-5823.42,0.000274,2]
[322319062,1712951440983,-5823.42,0.000274,2]
[322319064,1712951440993,-5823.42,0.000274,2]
[322319066,1712951441003,-5823.42,0.000274,2]
[322319068,1712951441014,-154.56277226,0.0002745,2]
[322319070,1712951441023,-566.32,0.00027651,2]
[322319072,1712951441034,-319.74762998,0.00027669,2]
[322319075,1712951441044,-2779.29,0.00027945,5]
[322319076,1712951441053,-151.99974089,0.00027949,2]
[322319079,1712951441063,-20180.30698704,0.00028,2]
[322319081,1712951441072,-23537.74550508,0.00028,2]
[322319083,1712951441081,-470.7549101,0.00028,2]
[322319085,1712951441091,-223.247444,0.00028,2]
[322319086,1712951441101,-153.52245926,0.000281,2]
[322319088,1712951441114,-200.0,0.00028103,2]
[322319091,1712951441125,-1000.0,0.00028103,10]
[322319093,1712951441134,-500.0,0.00028103,2]
[322319095,1712951441144,-500.0,0.00028103,2]
[322319096,1712951441154,-2142.60787145,0.00028167,2]
[322319099,1712951441164,-158.47560348,0.00028193,2]
[322319101,1712951441174,-170.7,0.000282,2]
[322319103,1712951441183,-1063.0,0.0002823,5]
[322319104,1712951441194,-9845.19856088,0.00028232,2]
[322319107,1712951441204,-178.0311027,0.00028233,2]
[322319109,1712951441213,-161.87532424,0.00028278,2]
[322319111,1712951441224,-3000.0,0.0002829,2]
[322319113,1712951441233,-1107.68,0.00028408,2]
[322319115,1712951441244,-151.99775341,0.0002858,2]
[322319117,1712951441255,-800.0,0.00028635,2]
[322319119,1712951441266,-158.76931413,0.00028806,2]
[322319121,1712951441276,-5706.75221638,0.000289,2]
[322319122,1712951441286,-154.56277226,0.0002896,2]
[322319125,1712951441296,-6746.82289371,0.00029,2]
[322319126,1712951441306,-450.0,0.00029,3]
[322319128,1712951441315,-152.22,0.00029,2]
[322319131,1712951441325,-152.22,0.00029,2]
[322319133,1712951441337,-152.22,0.00029,2]
[322319135,1712951441352,-152.22,0.00029,2]
[322319137,1712951441370,-152.22,0.00029,2]
[322319139,1712951441380,-152.22,0.00029,2]
[322319141,1712951441392,-152.22,0.00029,2]
[322319143,1712951441402,-152.22,0.00029,2]
[322319145,1712951441412,-152.22,0.00029,2]
[322319147,1712951441422,-152.22,0.00029,2]
[322319149,1712951441431,-152.22,0.00029,2]
[322319151,1712951441440,-152.22,0.00029,2]
[322319153,1712951441449,-152.22,0.00029,2]
[322319155,1712951441460,-152.22,0.00029,2]
[322319157,1712951441477,-152.22,0.00029,2]
[322319159,1712951441487,-152.22,0.00029,2]
[322319161,1712951441497,-152.22,0.00029,2]
[322319163,1712951441507,-152.22,0.00029,2]
[322319165,1712951441517,-152.22,0.00029,2]
[322319167,1712951441527,-152.22,0.00029,2]
[322319169,1712951441537,-152.22,0.00029,2]
[322319171,1712951441546,-152.22,0.00029,2]
[322319173,1712951441557,-152.22,0.00029,2]
[322319175,1712951441569,-157.70207275,0.00029041,2]
[322319177,1712951441584,-151.99974089,0.00029309,2]
[322319179,1712951441594,-200.0,0.00029333,2]
[322319181,1712951441609,-319.74762998,0.00029362,2]
[322319183,1712951441619,-159.16861745,0.00029464,2]
[322319185,1712951441629,-1138.24485412,0.00029471,2]
[322319187,1712951441639,-441.9821801,0.000295,3]
[322319189,1712951441649,-156.92440176,0.00029558,2]
[322319192,1712951441659,-154.5621203,0.00029623,2]
[322319193,1712951441670,-151.99974089,0.00029666,2]
[322319195,1712951441680,-152.22,0.00029889,2]
[322319198,1712951441692,-48233.57510117,0.000299,2]
[322319200,1712951441707,-12005.06172581,0.000299,2]
[322319202,1712951441716,-566.32,0.00029915,2]
[322319204,1712951441726,-2655.8911302,0.0002999,2]
[322319206,1712951441736,-19317.09856153,0.0003,4]
[322319208,1712951441747,-500.0,0.0003,2]
[322319210,1712951441757,-405.6958138,0.0003,4]
[322319212,1712951441767,-441.01478668,0.0003,2]
[322319214,1712951441777,-16898.29816228,0.0003,3]
[322319216,1712951441788,-355.01191939,0.0003,4]
[322319218,1712951441797,-5670.09115742,0.0003,2]
[322319220,1712951441806,-680.05337058,0.0003,4]
[322319222,1712951441815,-4349.92427758,0.0003,2]
[322319225,1712951441830,-2591.81933949,0.0003,2]
[322319227,1712951441843,-420.92700151,0.0003,2]
[322319229,1712951441854,-500.0,0.0003,3]
[322319231,1712951441865,-207.0,0.0003,2]
[322319233,1712951441877,-151.99974089,0.00030001,7]
[322319235,1712951441886,-2008.60383999,0.000301,4]
[322319237,1712951441899,-977.12026781,0.000301,4]
[322319239,1712951441911,-1679.97638172,0.000301,4]
[322319241,1712951441925,-334.29951048,0.000301,4]
[322319243,1712951441936,-2998.0,0.000301,5]
[322319245,1712951441946,-158.89,0.000302,2]
[322319247,1712951441956,-180.0,0.00030258,2]
[322319249,1712951441968,-151.99974089,0.00030289,7]
[322319252,1712951441979,-153.52245926,0.00030456,7]
[322319254,1712951441989,-151.99974089,0.00030464,7]
[322319256,1712951442000,-153.52245926,0.00030492,7]
[322319258,1712951442011,-151.99775341,0.000305,2]
[322319260,1712951442021,-2142.60787145,0.00030622,2]
[322319262,1712951442031,-9845.19856088,0.00030677,2]
[322319264,1712951442042,-156.21030622,0.00030694,7]
[322319266,1712951442053,-711.26159726,0.0003079,2]
[322319271,1712951442098,-672.84,0.0003079,2]
[322319316,1712951442514,-1615.89840274,0.0003079,2]
[322319318,1712951442525,-543.81975447,0.000309,2]
[322319320,1712951442537,-1718.2218437,0.000309,2]
[322319322,1712951442548,-1029.87971007,0.000309,2]
[322319325,1712951442563,-2414.83090814,0.000309,2]
[322319327,1712951442573,-490.8694946,0.00031,4]
[322319329,1712951442582,-2221.84004179,0.00031,3]
[322319331,1712951442591,-500.0,0.00031,3]
[322319332,1712951442600,-151.99974089,0.00031,7]
[322319335,1712951442612,-319.74762998,0.00031054,2]
[322319337,1712951442622,-5000.0,0.00031102,2]
[322319339,1712951442632,-5000.0,0.00031177,2]
[322319341,1712951442643,-2500.0,0.00031177,2]
[322319342,1712951442654,-151.99974089,0.00031182,7]
[322319344,1712951442666,-5000.0,0.00031234,2]
[322319346,1712951442676,-2500.0,0.00031314,2]
[322319347,1712951442687,-157.70207275,0.00031368,7]
[322319348,1712951442697,-2500.0,0.00031374,2]
[322319349,1712951442708,-2502.7,0.00031416,2]
[322319350,1712951442718,-152.13757892,0.00031424,7]
[322319351,1712951442728,-152.22,0.00031466,2]
[322319352,1712951442739,-5000.0,0.00031476,2]
[322319353,1712951442749,-800.0,0.00031499,2]
[322319355,1712951442759,-5000.0,0.00031533,2]
[322319357,1712951442769,-5000.0,0.00031557,2]
[322319359,1712951442778,-2579.33,0.00031567,2]
[322319361,1712951442788,-5000.0,0.00031613,2]
[322319363,1712951442797,-157.71,0.00031644,2]
[322319365,1712951442806,-2500.0,0.00031655,2]
[322319367,1712951442815,-643.61,0.00031711,2]
[322319369,1712951442824,-3119.02,0.00031734,2]
[322319371,1712951442834,-5000.0,0.00031745,2]
[322319373,1712951442843,-1025.32747048,0.00031786,2]
[322319375,1712951442861,-1474.67252952,0.00031786,2]
[322319377,1712951442870,-5000.0,0.00031814,2]
[322319379,1712951442879,-2510.89,0.00031851,2]
[322319381,1712951442888,-151.23899048,0.00031859,2]
[322319384,1712951442902,-4848.76100952,0.00031859,2]
[322319386,1712951442911,-25000.0,0.00031874,2]
[322319387,1712951442921,-332.69328716,0.000319,2]
[322319390,1712951442931,-5000.0,0.00031913,2]
[322319391,1712951442942,-154.29634422,0.00031919,7]
[322319393,1712951442951,-1002.7971,0.00031999,2]
[322319395,1712951442960,-200.0,0.00032,2]
[322319397,1712951442970,-155.0,0.00032,4]
[322319400,1712951442979,-153.52245926,0.00032093,7]
[322319402,1712951442989,-153.52245926,0.00032126,7]
[322319404,1712951442998,-566.32,0.00032179,2]
[322319406,1712951443008,-169.95727082,0.00032338,7]
[322319408,1712951443019,-159.22335695,0.0003237,7]
[322319410,1712951443028,-151.99775341,0.0003242,2]
[322319412,1712951443037,-161.87532424,0.0003248,7]
[322319414,1712951443047,-695.46807531,0.000326,20]
[322319416,1712951443056,-1991.98,0.00032603,2]
[322319418,1712951443065,-6220.26,0.00032603,2]
[322319445,1712951443246,-159.16861745,0.00032619,7]
[322319448,1712951443259,-967.0,0.00032714,2]
[322319451,1712951443268,-2289.0,0.00032714,2]
[322319454,1712951443278,-1390.0,0.00032714,2]
[322319457,1712951443287,-460.0,0.00032714,2]
[322319460,1712951443296,-1254.182,0.00032714,2]
[322319462,1712951443305,-1225.0,0.00032714,2]
[322319465,1712951443315,-540.285,0.00032714,2]
[322319469,1712951443324,-286.106,0.00032714,2]
[322319472,1712951443334,-740.435,0.00032714,2]
[322319474,1712951443343,-1947.0,0.00032714,2]
[322319477,1712951443355,-436.0,0.00032714,2]
[322319480,1712951443366,-807.0,0.00032714,2]
[322319482,1712951443376,-3041.0,0.00032714,2]
[322319484,1712951443385,-218.296,0.00032714,2]
[322319486,1712951443395,-1140.0,0.00032714,2]
[322319488,1712951443403,-1471.0,0.00032714,2]
[322319490,1712951443414,-398.0,0.00032714,2]
[322319492,1712951443424,-1636.0,0.00032714,2]
[322319494,1712951443433,-2438.0,0.00032714,2]
[322319496,1712951443442,-203.612,0.00032714,2]
[322319498,1712951443451,-227.526,0.00032714,2]
[322319500,1712951443460,-354.0,0.00032714,2]
[322319502,1712951443470,-214.0,0.00032714,2]
[322319504,1712951443480,-442.0,0.00032714,2]
[322319506,1712951443489,-37595.0,0.00032714,2]
[322319508,1712951443500,-1314.0,0.00032714,2]
[322319510,1712951443508,-200.0,0.00032714,2]
[322319512,1712951443517,-2463.798,0.00032714,2]
[322319514,1712951443526,-5715.0,0.00032714,2]
[322319516,1712951443535,-4799.0,0.00032714,2]
[322319518,1712951443543,-1053.0,0.00032714,2]
[322319520,1712951443552,-150.251,0.00032714,2]
[322319522,1712951443560,-319.74762998,0.00032746,2]
[322319524,1712951443569,-153.52245926,0.00032748,7]
[322319526,1712951443578,-1000.0,0.00032799,2]
[322319528,1712951443588,-520.0,0.00032849,2]
[322319530,1712951443597,-556.0,0.00032849,2]
[322319532,1712951443609,-300.0,0.00032876,2]
[322319534,1712951443618,-300.0,0.00032876,2]
[322319536,1712951443627,-300.0,0.00032876,2]
[322319538,1712951443636,-300.0,0.00032876,2]
[322319540,1712951443644,-300.0,0.00032876,2]
[322319542,1712951443653,-300.0,0.00032876,2]
[322319544,1712951443662,-300.0,0.00032876,2]
[322319545,1712951443671,-300.0,0.00032876,2]
[322319547,1712951443679,-353.3,0.00032876,2]
[322319549,1712951443689,-150.55,0.00032877,2]
[322319551,1712951443698,-5706.75221638,0.000329,4]
[322319553,1712951443707,-1000.0,0.0003295,15]
[322319556,1712951443717,-550.0,0.00033,3]
[322319558,1712951443726,-161.60434799,0.00033003,7]
[322319559,1712951443735,-154.29634422,0.0003304,7]
[322319561,1712951443744,-152.22,0.00033068,2]
[322319563,1712951443753,-2142.60787145,0.00033078,2]
[322319565,1712951443763,-170.7,0.000331,2]
[322319567,1712951443772,-9845.19856088,0.00033121,2]
[322319570,1712951443781,-10000.0,0.00033141,2]
[322319572,1712951443791,-261.98,0.00033165,2]
[322319574,1712951443799,-570.65651224,0.0003329,2]
[322319576,1712951443813,-546.27982491,0.0003329,2]
[322319583,1712951443876,-325.60748634,0.0003329,2]
[322319585,1712951443887,-1557.45617651,0.0003329,2]
[322319587,1712951443897,-157.70207275,0.00033618,7]
[322319589,1712951443906,-158.89,0.000337,2]
[322319591,1712951443916,-152.78,0.000337,2]
[322319593,1712951443925,-158.47560348,0.00033739,7]
[322319595,1712951443934,-153.52245926,0.00033782,7]
[322319597,1712951443943,-157.70207275,0.00034068,7]
[322319599,1712951443952,-556.0,0.00034082,2]
[322319601,1712951443962,-1000.0,0.00034247,2]
[322319603,1712951443970,-159.22335695,0.0003426,7]
[322319605,1712951443979,-223.30239967,0.00034304,6]
[322319607,1712951443988,-151.99775341,0.0003434,2]
[322319609,1712951443997,-448.87400093,0.00034362,2]
[322319611,1712951444009,-351.12599907,0.00034362,2]
[322319613,1712951444018,-319.74762998,0.00034438,2]
[322319615,1712951444027,-566.32,0.00034443,2]
[322319617,1712951444037,-135.22595478,0.00034498,2]
[322319619,1712951444049,-282.74256921,0.00034498,2]
[322319622,1712951444070,-313.9300721,0.00034498,2]
[322319627,1712951444112,-257.59616578,0.00034498,2]
[322319779,1712951445584,-42.70168292,0.00034498,2]
[322319782,1712951445605,-1262.61670654,0.00034498,2]
[322319784,1712951445617,-1017.23558371,0.00034509,5]
[322319786,1712951445627,-1025.73317342,0.00034509,5]
[322319788,1712951445636,-150.0,0.00034548,10]
[322319790,1712951445645,-1138.37717533,0.00034749,5]
[322319793,1712951445658,-3944.65382163,0.000348,14]
[322319795,1712951445667,-156.21030622,0.00034869,7]
[322319797,1712951445676,-5706.75221638,0.000349,7]
[322319799,1712951445685,-150.0,0.00034974,2]
[322319801,1712951445694,-150.0,0.00034978,2]
[322319803,1712951445703,-150.0,0.00034988,2]
[322319805,1712951445712,-250.4686079,0.00035,120]
[322319807,1712951445723,-600.0,0.00035,3]
[322319809,1712951445733,-150.0,0.00035012,2]
[322319811,1712951445744,-150.0,0.00035032,2]
[322319813,1712951445753,-300.0,0.00035035,2]
[322319815,1712951445763,-150.0,0.00035069,2]
[322319817,1712951445772,-150.0,0.00035081,2]
[322319819,1712951445782,-150.0,0.00035085,2]
[322319821,1712951445791,-150.0,0.00035103,2]
[322319823,1712951445800,-150.0,0.00035117,2]
[322319825,1712951445810,-150.0,0.00035125,2]
[322319827,1712951445819,-150.0,0.0003513,2]
[322319829,1712951445828,-150.0,0.00035147,2]
[322319831,1712951445837,-150.0,0.0003518,2]
[322319833,1712951445848,-150.0,0.00035183,2]
[322319834,1712951445857,-150.0,0.00035183,2]
[322319837,1712951445867,-150.0,0.0003519,2]
[322319838,1712951445877,-150.0,0.00035193,2]
[322319841,1712951445888,-150.0,0.00035193,2]
[322319843,1712951445898,-155.0,0.00035213,2]
[322319844,1712951445906,-155.0,0.00035213,2]
[322319847,1712951445915,-150.0,0.00035221,2]
[322319849,1712951445926,-158.28,0.00035225,2]
[322319850,1712951445935,-2000.0,0.0003526,30]
[322319853,1712951445945,-596.3,0.00035288,15]
[322319855,1712951445955,-476.918055,0.000353,18]
[322319856,1712951445963,-153.468578,0.000353,120]
[322319859,1712951445973,-7039.76998719,0.00035304,2]
[322319861,1712951445982,-499.999999,0.00035304,2]
[322319863,1712951445991,-3869.47359343,0.00035304,2]
[322319865,1712951446003,-2130.52640657,0.00035304,2]
[322319867,1712951446013,-2500.0,0.00035304,2]
[322319869,1712951446022,-2316.8943038,0.00035304,2]
[322319871,1712951446031,-1600.17624708,0.00035304,2]
[322319873,1712951446041,-9277.65952855,0.00035304,2]
[322319875,1712951446050,-1767.2250312,0.00035304,2]
[322319877,1712951446060,-4898.12585004,0.00035304,2]
[322319879,1712951446069,-2722.97231334,0.00035304,2]
[322319881,1712951446079,-556.0,0.00035315,2]
[322319882,1712951446088,-500.0,0.00035374,10]
[322319883,1712951446097,-2142.60787145,0.00035533,2]
[322319884,1712951446107,-9845.19856088,0.00035566,2]
[322319885,1712951446117,-178.0311027,0.00035567,8]
[322319886,1712951446128,-153.13696663,0.00035644,7]
[322319887,1712951446137,-176.0,0.0003566,23]
[322319889,1712951446148,-156.65046783,0.00035697,7]
[322319891,1712951446157,-967.0,0.00035714,2]
[322319894,1712951446167,-2289.0,0.00035714,2]
[322319897,1712951446176,-1371.0,0.00035714,2]
[322319900,1712951446185,-460.0,0.00035714,2]
[322319903,1712951446194,-280.0,0.00035714,2]
[322319906,1712951446204,-608.0,0.00035714,2]
[322319909,1712951446213,-1947.0,0.00035714,2]
[322319913,1712951446225,-432.0,0.00035714,2]
[322319916,1712951446234,-807.0,0.00035714,2]
[322319919,1712951446243,-3041.0,0.00035714,2]